[Event "Early-Titled-Tuesday-Blitz-March-05-2024"]
[Site "Chess.com"]
[Date "2024.03.05"]
[Round "3"]
[White "Bekkedahl"]
[Black "ARMQUEEN"]
[Result "0-1"]
[WhiteElo "2181"]
[BlackElo "2411"]
[TimeControl "180+1"]
[EndTime "8:31:33 PST"]
[Termination "ARMQUEEN won by resignation"]

1. e4 {[%clk 0:03:00.9]} 1... c5 {[%clk 0:02:57.7]} 2. Nf3 {[%clk 0:03:01.4]}
2... Nc6 {[%clk 0:02:52.7]} 3. Bb5 {[%clk 0:03:01.7]} 3... g6 {[%clk 0:02:41.3]}
4. O-O {[%clk 0:03:02.1]} 4... Bg7 {[%clk 0:02:39.2]} 5. c3 {[%clk 0:03:02.6]}
5... d6 {[%clk 0:02:38.8]} 6. d4 {[%clk 0:03:02.6]} 6... cxd4 {[%clk 0:02:38]}
7. cxd4 {[%clk 0:03:03.5]} 7... Nf6 {[%clk 0:02:37.7]} 8. Nc3 {[%clk 0:03:03.4]}
8... O-O {[%clk 0:02:37.2]} 9. Bg5 {[%clk 0:03:02.8]} 9... Bg4 {[%clk
0:02:35.1]} 10. Bxc6 {[%clk 0:02:50.4]} 10... bxc6 {[%clk 0:02:31.8]} 11. h3
{[%clk 0:02:51.1]} 11... Bd7 {[%clk 0:02:30.8]} 12. Qd2 {[%clk 0:02:47.7]} 12...
Rb8 {[%clk 0:02:30.3]} 13. Rad1 {[%clk 0:02:44.4]} 13... Qb6 {[%clk 0:02:28.4]}
14. e5 {[%clk 0:02:34.8]} 14... Nd5 {[%clk 0:02:03.8]} 15. Nxd5 {[%clk 0:02:28]}
15... cxd5 {[%clk 0:02:03.8]} 16. Bxe7 {[%clk 0:02:27.7]} 16... Rfc8 {[%clk
0:02:03.1]} 17. Bxd6 {[%clk 0:02:26.5]} 17... Rb7 {[%clk 0:02:02.3]} 18. b3
{[%clk 0:02:19.5]} 18... Bf5 {[%clk 0:01:29.2]} 19. Rc1 {[%clk 0:02:14.6]} 19...
Rd8 {[%clk 0:01:27.5]} 20. Rc5 {[%clk 0:02:04.3]} 20... h5 {[%clk 0:01:24.9]}
21. Rxd5 {[%clk 0:01:57.1]} 21... Be4 {[%clk 0:01:24.4]} 22. Bc5 {[%clk
0:01:53.6]} 22... Qc7 {[%clk 0:01:06.8]} 23. Rxd8+ {[%clk 0:01:53.2]} 23... Qxd8
{[%clk 0:01:07.7]} 24. Qf4 {[%clk 0:01:47]} 24... Bd5 {[%clk 0:01:06.1]} 25. Rc1
{[%clk 0:01:40.5]} 25... a5 {[%clk 0:01:02.6]} 26. Nd2 {[%clk 0:01:37.9]} 26...
Kh7 {[%clk 0:00:59.4]} 27. Ne4 {[%clk 0:01:37.7]} 27... Bh6 {[%clk 0:00:55.2]}
28. Nf6+ {[%clk 0:01:11.6]} 28... Kg7 {[%clk 0:00:49]} 29. Nxd5 {[%clk
0:00:51.9]} 29... Bxf4 {[%clk 0:00:48]} 30. Nxf4 {[%clk 0:00:52.8]} 30... Qg5
{[%clk 0:00:45.2]} 31. g3 {[%clk 0:00:50.1]} 31... h4 {[%clk 0:00:43.1]} 32. Kg2
{[%clk 0:00:46.1]} 32... hxg3 {[%clk 0:00:42.1]} 33. fxg3 {[%clk 0:00:47]} 33...
Qf5 {[%clk 0:00:42.4]} 34. Re1 {[%clk 0:00:45.7]} 34... g5 {[%clk 0:00:36.3]}
35. Ne2 {[%clk 0:00:27.3]} 35... Qe4+ {[%clk 0:00:33.9]} 36. Kf2 {[%clk
0:00:26.5]} 36... a4 {[%clk 0:00:32.5]} 37. b4 {[%clk 0:00:25.3]} 37... a3
{[%clk 0:00:32.3]} 38. Rc1 {[%clk 0:00:18.2]} 38... Qd5 {[%clk 0:00:25.7]} 39.
Rc2 {[%clk 0:00:17.3]} 39... f6 {[%clk 0:00:25.6]} 40. exf6+ {[%clk 0:00:16.5]}
40... Kxf6 {[%clk 0:00:25.6]} 41. g4 {[%clk 0:00:16.4]} 41... Kg6 {[%clk
0:00:24.3]} 42. Ng3 {[%clk 0:00:16.9]} 42... Rf7+ {[%clk 0:00:23.5]} 43. Nf5
{[%clk 0:00:17.6]} 43... Rxf5+ {[%clk 0:00:23.7]} 44. gxf5+ {[%clk 0:00:17.6]}
44... Qxf5+ {[%clk 0:00:24]} 45. Ke3 {[%clk 0:00:17.1]} 45... Qxc2 {[%clk
0:00:24.1]} 46. d5 {[%clk 0:00:17.9]} 46... Qxa2 {[%clk 0:00:23.8]} 47. d6
{[%clk 0:00:18.7]} 47... Qe6+ {[%clk 0:00:24]} 48. Kd3 {[%clk 0:00:18]} 48... a2
{[%clk 0:00:24.2]} 49. Bd4 {[%clk 0:00:17.9]} 49... Qxd6 {[%clk 0:00:23.4]} 50.
Kc4 {[%clk 0:00:18.1]} 50... Qxd4+ {[%clk 0:00:23.5]} 51. Kxd4 {[%clk
0:00:18.9]} 51... a1=Q+ {[%clk 0:00:24]} 52. Kc5 {[%clk 0:00:18.8]} 52... Kh5
{[%clk 0:00:22.8]} 53. b5 {[%clk 0:00:19]} 53... Kh4 {[%clk 0:00:23.1]} 0-1

[Event "Early-Titled-Tuesday-Blitz-March-05-2024"]
[Site "Chess.com"]
[Date "2024.03.05"]
[Round "3"]
[White "RedFirePanda"]
[Black "AEMEffi"]
[Result "1-0"]
[WhiteElo "2552"]
[BlackElo "2324"]
[TimeControl "180+1"]
[EndTime "8:31:35 PST"]
[Termination "RedFirePanda won on time"]

1. d4 {[%clk 0:03:00.9]} 1... Nf6 {[%clk 0:02:58.1]} 2. Bf4 {[%clk 0:02:59.7]}
2... b6 {[%clk 0:02:54.4]} 3. e3 {[%clk 0:02:57.3]} 3... Bb7 {[%clk 0:02:54.5]}
4. Nf3 {[%clk 0:02:57.4]} 4... e6 {[%clk 0:02:53.7]} 5. h3 {[%clk 0:02:54.3]}
5... c5 {[%clk 0:02:53.2]} 6. c3 {[%clk 0:02:51.4]} 6... Be7 {[%clk 0:02:43.9]}
7. Bd3 {[%clk 0:02:48.6]} 7... Ne4 {[%clk 0:02:27.8]} 8. O-O {[%clk 0:02:43.7]}
8... f5 {[%clk 0:02:23]} 9. Nbd2 {[%clk 0:02:33.8]} 9... O-O {[%clk 0:02:16.6]}
10. Ne5 {[%clk 0:02:21.4]} 10... d6 {[%clk 0:02:03]} 11. Nef3 {[%clk 0:02:03.5]}
11... Qe8 {[%clk 0:01:52.3]} 12. Bxe4 {[%clk 0:01:42.8]} 12... fxe4 {[%clk
0:01:52]} 13. Ng5 {[%clk 0:01:42]} 13... Bxg5 {[%clk 0:01:50.7]} 14. Bxg5 {[%clk
0:01:42.9]} 14... Nd7 {[%clk 0:01:27.6]} 15. Qg4 {[%clk 0:01:38.7]} 15... Qg6
{[%clk 0:01:22.6]} 16. Be7 {[%clk 0:01:25.5]} 16... Qxg4 {[%clk 0:01:18.3]} 17.
hxg4 {[%clk 0:01:26.4]} 17... Rfc8 {[%clk 0:01:13.4]} 18. Bxd6 {[%clk
0:01:24.4]} 18... g5 {[%clk 0:00:59.1]} 19. Rad1 {[%clk 0:01:04.2]} 19... Nf6
{[%clk 0:00:55.3]} 20. f3 {[%clk 0:01:00.9]} 20... cxd4 {[%clk 0:00:33.2]} 21.
cxd4 {[%clk 0:00:35.3]} 21... Rc2 {[%clk 0:00:28.7]} 22. Ba3 {[%clk 0:00:30.9]}
22... Rac8 {[%clk 0:00:19.1]} 23. Rf2 {[%clk 0:00:23.3]} 23... Bd5 {[%clk
0:00:12.7]} 24. Rdf1 {[%clk 0:00:07.5]} 24... exf3 {[%clk 0:00:10]} 25. gxf3
{[%clk 0:00:08.4]} 25... Bxa2 {[%clk 0:00:09.8]} 26. Kg2 {[%clk 0:00:04.3]}
26... Nd5 {[%clk 0:00:09.3]} 27. Re1 {[%clk 0:00:03.1]} 27... h6 {[%clk
0:00:08]} 28. Kg3 {[%clk 0:00:03.4]} 28... Kg7 {[%clk 0:00:08]} 29. Ne4 {[%clk
0:00:02.3]} 29... Rxf2 {[%clk 0:00:07.2]} 30. Nxf2 {[%clk 0:00:03.2]} 30... Rc2
{[%clk 0:00:07.2]} 31. Nd3 {[%clk 0:00:03.6]} 31... Bc4 {[%clk 0:00:06.4]} 32.
Ne5 {[%clk 0:00:03.8]} 32... Bb5 {[%clk 0:00:06.3]} 33. f4 {[%clk 0:00:03.4]}
33... gxf4+ {[%clk 0:00:05.6]} 34. exf4 {[%clk 0:00:04.3]} 34... Nf6 {[%clk
0:00:04.5]} 35. g5 {[%clk 0:00:04]} 35... Nh5+ {[%clk 0:00:04.4]} 36. Kg4 {[%clk
0:00:04.2]} 36... hxg5 {[%clk 0:00:03.7]} 37. fxg5 {[%clk 0:00:05.1]} 37... Rh2
{[%clk 0:00:02.9]} 38. Nf3 {[%clk 0:00:03.9]} 1-0

[Event "Early-Titled-Tuesday-Blitz-March-05-2024"]
[Site "Chess.com"]
[Date "2024.03.05"]
[Round "3"]
[White "subham777"]
[Black "rikchessmx"]
[Result "1-0"]
[WhiteElo "2536"]
[BlackElo "2277"]
[TimeControl "180+1"]
[EndTime "8:31:36 PST"]
[Termination "subham777 won on time"]

1. e4 {[%clk 0:03:00.9]} 1... e5 {[%clk 0:02:51.3]} 2. Nf3 {[%clk 0:03:00.1]}
2... Nc6 {[%clk 0:02:52.2]} 3. Bc4 {[%clk 0:02:59.5]} 3... Bc5 {[%clk
0:02:51.5]} 4. c3 {[%clk 0:02:59]} 4... Qf6 {[%clk 0:02:50.7]} 5. d3 {[%clk
0:02:57.8]} 5... d6 {[%clk 0:02:48.6]} 6. a4 {[%clk 0:02:55]} 6... a6 {[%clk
0:02:46]} 7. Nbd2 {[%clk 0:02:53.1]} 7... Nge7 {[%clk 0:02:45.3]} 8. Nf1 {[%clk
0:02:51.9]} 8... h6 {[%clk 0:02:44]} 9. Ng3 {[%clk 0:02:51.7]} 9... Bg4 {[%clk
0:02:34.9]} 10. h3 {[%clk 0:02:46]} 10... Bxf3 {[%clk 0:02:34.7]} 11. gxf3
{[%clk 0:02:46.3]} 11... g6 {[%clk 0:02:23]} 12. b4 {[%clk 0:02:35.7]} 12... Ba7
{[%clk 0:02:21.4]} 13. Qe2 {[%clk 0:02:30.6]} 13... Kf8 {[%clk 0:02:02.3]} 14.
Be3 {[%clk 0:02:27.6]} 14... Kg7 {[%clk 0:01:59.7]} 15. Rg1 {[%clk 0:02:24.2]}
15... Kh7 {[%clk 0:01:56.5]} 16. Kd2 {[%clk 0:01:57.9]} 16... Bxe3+ {[%clk
0:01:54.7]} 17. fxe3 {[%clk 0:01:56.1]} 17... Rhf8 {[%clk 0:01:49.9]} 18. h4
{[%clk 0:01:51]} 18... Rad8 {[%clk 0:01:36]} 19. h5 {[%clk 0:01:47.5]} 19... d5
{[%clk 0:01:30.9]} 20. exd5 {[%clk 0:01:44.8]} 20... Nxd5 {[%clk 0:01:30.3]} 21.
Ne4 {[%clk 0:01:43.3]} 21... Qf5 {[%clk 0:01:24.6]} 22. hxg6+ {[%clk 0:01:29.1]}
22... fxg6 {[%clk 0:01:24.3]} 23. Qh2 {[%clk 0:01:22.9]} 23... Nf6 {[%clk
0:01:05.5]} 24. Ng5+ {[%clk 0:01:16.1]} 24... Kg7 {[%clk 0:01:00.5]} 25. Ne6+
{[%clk 0:01:10.8]} 25... Kh7 {[%clk 0:00:59.4]} 26. Nxf8+ {[%clk 0:01:06.6]}
26... Rxf8 {[%clk 0:00:58.4]} 27. Raf1 {[%clk 0:00:39.2]} 27... Rd8 {[%clk
0:00:42.8]} 28. e4 {[%clk 0:00:32.8]} 28... Qf4+ {[%clk 0:00:33.6]} 29. Qxf4
{[%clk 0:00:32.2]} 29... exf4 {[%clk 0:00:33.9]} 30. d4 {[%clk 0:00:29.7]} 30...
Ne5 {[%clk 0:00:33.5]} 31. Bb3 {[%clk 0:00:22.6]} 31... g5 {[%clk 0:00:27.4]}
32. Ke2 {[%clk 0:00:20.6]} 32... Ng6 {[%clk 0:00:27.2]} 33. Bc2 {[%clk
0:00:19.1]} 33... Kg7 {[%clk 0:00:23.5]} 34. Rh1 {[%clk 0:00:13.6]} 34... b6
{[%clk 0:00:16.3]} 35. Rfg1 {[%clk 0:00:13.3]} 35... Ne7 {[%clk 0:00:11.5]} 36.
d5 {[%clk 0:00:10.9]} 36... a5 {[%clk 0:00:09.7]} 37. bxa5 {[%clk 0:00:09.5]}
37... bxa5 {[%clk 0:00:09.4]} 38. Rb1 {[%clk 0:00:10.1]} 38... Nd7 {[%clk
0:00:09.6]} 39. Rb7 {[%clk 0:00:09.5]} 39... Rc8 {[%clk 0:00:09]} 40. Rhb1
{[%clk 0:00:08.5]} 40... Ne5 {[%clk 0:00:05.5]} 41. d6 {[%clk 0:00:07.2]} 41...
N7g6 {[%clk 0:00:01.7]} 42. Rxc7+ {[%clk 0:00:07]} 1-0

[Event "Early-Titled-Tuesday-Blitz-March-05-2024"]
[Site "Chess.com"]
[Date "2024.03.05"]
[Round "3"]
[White "NikoTheodorou"]
[Black "Abund"]
[Result "1-0"]
[WhiteElo "3069"]
[BlackElo "2749"]
[TimeControl "180+1"]
[EndTime "8:31:38 PST"]
[Termination "NikoTheodorou won by resignation"]

1. Nf3 {[%clk 0:03:00.9]} 1... d5 {[%clk 0:02:59.4]} 2. g3 {[%clk 0:03:01.2]}
2... c5 {[%clk 0:02:59.8]} 3. Bg2 {[%clk 0:03:00.6]} 3... Nc6 {[%clk 0:03:00.5]}
4. O-O {[%clk 0:02:59.3]} 4... e5 {[%clk 0:03:00.8]} 5. d3 {[%clk 0:02:59.4]}
5... Be7 {[%clk 0:03:00.8]} 6. Na3 {[%clk 0:02:55]} 6... Be6 {[%clk 0:02:58.1]}
7. c3 {[%clk 0:02:29.6]} 7... h5 {[%clk 0:02:39.6]} 8. h4 {[%clk 0:02:29.4]}
8... Nh6 {[%clk 0:02:37.6]} 9. Ng5 {[%clk 0:01:27.7]} 9... Bc8 {[%clk
0:01:47.2]} 10. Nc2 {[%clk 0:00:55.8]} 10... f6 {[%clk 0:01:44.4]} 11. Nh3
{[%clk 0:00:56.2]} 11... Be6 {[%clk 0:01:35.8]} 12. e4 {[%clk 0:00:52]} 12...
Bg4 {[%clk 0:01:06.3]} 13. f3 {[%clk 0:00:48]} 13... Be6 {[%clk 0:01:03.9]} 14.
Ne3 {[%clk 0:00:48]} 14... d4 {[%clk 0:01:00.5]} 15. Nd5 {[%clk 0:00:48.4]}
15... Bxd5 {[%clk 0:00:50.5]} 16. exd5 {[%clk 0:00:49.3]} 16... Qxd5 {[%clk
0:00:51.3]} 17. f4 {[%clk 0:00:50]} 17... Qd6 {[%clk 0:00:51]} 18. Qxh5+ {[%clk
0:00:48.8]} 18... Kd7 {[%clk 0:00:32.3]} 19. fxe5 {[%clk 0:00:41.9]} 19... fxe5
{[%clk 0:00:31.8]} 20. Nf2 {[%clk 0:00:39.1]} 20... Raf8 {[%clk 0:00:26]} 21.
Bd2 {[%clk 0:00:31.6]} 21... Kc7 {[%clk 0:00:22.1]} 22. Rae1 {[%clk 0:00:31.1]}
22... a6 {[%clk 0:00:13.6]} 23. Ne4 {[%clk 0:00:27.5]} 23... Qd7 {[%clk
0:00:12.7]} 24. Qg6 {[%clk 0:00:22.9]} 24... Qg4 {[%clk 0:00:07.9]} 25. Qxg4
{[%clk 0:00:13.5]} 25... Nxg4 {[%clk 0:00:08.8]} 26. c4 {[%clk 0:00:14.2]} 26...
Nf6 {[%clk 0:00:07.3]} 27. Ng5 {[%clk 0:00:12.7]} 27... Nd8 {[%clk 0:00:05.7]}
28. Rxe5 {[%clk 0:00:09]} 28... Bd6 {[%clk 0:00:06.1]} 29. Ref5 {[%clk
0:00:06.1]} 29... Bxg3 {[%clk 0:00:05.9]} 30. Rxc5+ {[%clk 0:00:06.5]} 30... Kb8
{[%clk 0:00:05.6]} 31. Bf4+ {[%clk 0:00:04.5]} 31... Bxf4 {[%clk 0:00:05.7]} 32.
Rxf4 {[%clk 0:00:05.4]} 32... Nd7 {[%clk 0:00:04.3]} 33. Rxf8 {[%clk 0:00:04.4]}
33... Rxf8 {[%clk 0:00:05.2]} 34. Rd5 {[%clk 0:00:04.9]} 34... Kc7 {[%clk
0:00:05.3]} 35. Rxd4 {[%clk 0:00:05.1]} 35... Ne5 {[%clk 0:00:05.9]} 36. Rxd8
{[%clk 0:00:03]} 36... Rxd8 {[%clk 0:00:05.6]} 37. Ne6+ {[%clk 0:00:03.6]} 37...
Kd7 {[%clk 0:00:06.2]} 38. Nxd8 {[%clk 0:00:04.1]} 38... Kxd8 {[%clk 0:00:07]}
39. Bxb7 {[%clk 0:00:04.8]} 39... a5 {[%clk 0:00:06.9]} 40. Be4 {[%clk
0:00:04.8]} 40... Ke7 {[%clk 0:00:07.6]} 41. Kf2 {[%clk 0:00:05.1]} 41... Kd6
{[%clk 0:00:08.2]} 42. Ke3 {[%clk 0:00:03.9]} 42... Kc5 {[%clk 0:00:08]} 43. d4+
{[%clk 0:00:04.2]} 1-0

[Event "Early-Titled-Tuesday-Blitz-March-05-2024"]
[Site "Chess.com"]
[Date "2024.03.05"]
[Round "3"]
[White "enriquebutti"]
[Black "rdarruda"]
[Result "1-0"]
[WhiteElo "2186"]
[BlackElo "2513"]
[TimeControl "180+1"]
[EndTime "8:31:38 PST"]
[Termination "enriquebutti won by resignation"]

1. d4 {[%clk 0:03:00]} 1... Nf6 {[%clk 0:02:57.4]} 2. Nf3 {[%clk 0:02:58.8]}
2... e6 {[%clk 0:02:57]} 3. e3 {[%clk 0:02:58.4]} 3... d5 {[%clk 0:02:56.9]} 4.
Bd3 {[%clk 0:02:58]} 4... c5 {[%clk 0:02:56]} 5. b3 {[%clk 0:02:57.7]} 5... Nc6
{[%clk 0:02:55.7]} 6. O-O {[%clk 0:02:56.3]} 6... Bd6 {[%clk 0:02:53.5]} 7. Bb2
{[%clk 0:02:54]} 7... O-O {[%clk 0:02:52.5]} 8. Nbd2 {[%clk 0:02:46.9]} 8... b6
{[%clk 0:02:51.9]} 9. a3 {[%clk 0:02:46.1]} 9... Bb7 {[%clk 0:02:51.6]} 10. Ne5
{[%clk 0:02:45.3]} 10... Qe7 {[%clk 0:02:28.1]} 11. f4 {[%clk 0:02:44.6]} 11...
Nd7 {[%clk 0:02:16.5]} 12. Qh5 {[%clk 0:02:30.4]} 12... g6 {[%clk 0:02:15.8]}
13. Qh6 {[%clk 0:02:26]} 13... f6 {[%clk 0:02:15.6]} 14. Nxd7 {[%clk 0:02:10.1]}
14... Qxd7 {[%clk 0:02:16.5]} 15. Rf3 {[%clk 0:02:09.7]} 15... cxd4 {[%clk
0:02:09.4]} 16. exd4 {[%clk 0:02:03.9]} 16... Qg7 {[%clk 0:02:08.7]} 17. Qh3
{[%clk 0:01:56.7]} 17... Bc8 {[%clk 0:02:04.5]} 18. Raf1 {[%clk 0:01:48.3]}
18... e5 {[%clk 0:01:57.8]} 19. f5 {[%clk 0:01:41.2]} 19... e4 {[%clk
0:01:57.5]} 20. Nxe4 {[%clk 0:01:38.6]} 20... dxe4 {[%clk 0:01:57.3]} 21. Bxe4
{[%clk 0:01:38.4]} 21... Bd7 {[%clk 0:01:46.7]} 22. Bd5+ {[%clk 0:01:21.4]}
22... Kh8 {[%clk 0:01:45.3]} 23. Be6 {[%clk 0:01:21]} 23... Rae8 {[%clk
0:01:30]} 24. d5 {[%clk 0:01:13.1]} 24... Ne5 {[%clk 0:01:28]} 25. Bxe5 {[%clk
0:01:12.2]} 25... Bxe5 {[%clk 0:01:27.6]} 26. fxg6 {[%clk 0:01:07.6]} 26... Bxe6
{[%clk 0:01:21.5]} 27. dxe6 {[%clk 0:01:01.6]} 27... Qxg6 {[%clk 0:01:21.5]} 28.
Rd3 {[%clk 0:00:54.3]} 28... Re7 {[%clk 0:01:15.9]} 29. Rd7 {[%clk 0:00:52.9]}
29... Rfe8 {[%clk 0:01:14]} 30. Rxe7 {[%clk 0:00:49.7]} 30... Rxe7 {[%clk
0:01:13.6]} 31. Rd1 {[%clk 0:00:47.8]} 31... Qe8 {[%clk 0:01:11.6]} 32. Rd7
{[%clk 0:00:42]} 32... a5 {[%clk 0:00:52.7]} 33. Qf5 {[%clk 0:00:39.4]} 33...
Rxd7 {[%clk 0:00:44.5]} 34. exd7 {[%clk 0:00:38.2]} 34... Qe7 {[%clk 0:00:45.1]}
35. g3 {[%clk 0:00:32.6]} 35... Qd6 {[%clk 0:00:43]} 36. Kg2 {[%clk 0:00:30]}
36... Kg7 {[%clk 0:00:40.9]} 37. Kh3 {[%clk 0:00:29.4]} 37... Kf8 {[%clk
0:00:37.4]} 38. Qxh7 {[%clk 0:00:28.1]} 38... Qe6+ {[%clk 0:00:31.8]} 39. Kh4
{[%clk 0:00:24.9]} 39... Bc7 {[%clk 0:00:32]} 40. Qh8+ {[%clk 0:00:23.4]} 40...
Ke7 {[%clk 0:00:26.5]} 41. Qe8+ {[%clk 0:00:22.5]} 41... Kd6 {[%clk 0:00:26.4]}
42. d8=Q+ {[%clk 0:00:21.4]} 42... Bxd8 {[%clk 0:00:27.3]} 43. Qxd8+ {[%clk
0:00:21.8]} 43... Kc6 {[%clk 0:00:27.4]} 44. Qd4 {[%clk 0:00:19.9]} 44... Kb7
{[%clk 0:00:23.3]} 45. Qc4 {[%clk 0:00:19.2]} 45... Qe7 {[%clk 0:00:21.3]} 46.
Qd5+ {[%clk 0:00:18.6]} 46... Ka6 {[%clk 0:00:20.4]} 47. Kg4 {[%clk 0:00:18.3]}
47... Qg7+ {[%clk 0:00:20.1]} 48. Kf3 {[%clk 0:00:17.9]} 48... Qg6 {[%clk
0:00:19.2]} 49. Qd3+ {[%clk 0:00:17.1]} 1-0

[Event "Early-Titled-Tuesday-Blitz-March-05-2024"]
[Site "Chess.com"]
[Date "2024.03.05"]
[Round "3"]
[White "AdrianaPalao"]
[Black "ClauSanLuis"]
[Result "1-0"]
[WhiteElo "1972"]
[BlackElo "2275"]
[TimeControl "180+1"]
[EndTime "8:31:39 PST"]
[Termination "AdrianaPalao won on time"]

1. e4 {[%clk 0:02:58.2]} 1... c5 {[%clk 0:02:59]} 2. Nf3 {[%clk 0:02:58.5]} 2...
Nc6 {[%clk 0:02:59.1]} 3. d4 {[%clk 0:02:57.7]} 3... cxd4 {[%clk 0:02:59.5]} 4.
Nxd4 {[%clk 0:02:58.6]} 4... g6 {[%clk 0:02:59.4]} 5. Nc3 {[%clk 0:02:58.3]}
5... Bg7 {[%clk 0:02:59.6]} 6. Be3 {[%clk 0:02:59.2]} 6... Nf6 {[%clk
0:02:59.7]} 7. Bc4 {[%clk 0:02:59.3]} 7... O-O {[%clk 0:02:58.9]} 8. Bb3 {[%clk
0:02:59.7]} 8... d6 {[%clk 0:02:57.9]} 9. f3 {[%clk 0:02:59.9]} 9... Na5 {[%clk
0:02:57.7]} 10. Qd2 {[%clk 0:02:57.6]} 10... Nxb3 {[%clk 0:02:57.6]} 11. Nxb3
{[%clk 0:02:57.6]} 11... a6 {[%clk 0:02:50.8]} 12. Bh6 {[%clk 0:02:55.5]} 12...
b5 {[%clk 0:02:50.4]} 13. Bxg7 {[%clk 0:02:54.6]} 13... Kxg7 {[%clk 0:02:50]}
14. g4 {[%clk 0:02:52.6]} 14... b4 {[%clk 0:02:48.6]} 15. Ne2 {[%clk 0:02:52.5]}
15... a5 {[%clk 0:02:46.5]} 16. h4 {[%clk 0:02:52.6]} 16... h5 {[%clk
0:02:44.3]} 17. gxh5 {[%clk 0:02:22]} 17... Nxh5 {[%clk 0:02:42.4]} 18. O-O-O
{[%clk 0:02:17.7]} 18... Be6 {[%clk 0:02:33.9]} 19. Kb1 {[%clk 0:02:10.6]} 19...
Bxb3 {[%clk 0:02:19.5]} 20. cxb3 {[%clk 0:02:06.1]} 20... Qb6 {[%clk 0:02:19.2]}
21. f4 {[%clk 0:01:58.7]} 21... a4 {[%clk 0:02:09.6]} 22. bxa4 {[%clk
0:01:50.4]} 22... b3 {[%clk 0:02:09.4]} 23. a3 {[%clk 0:01:39.1]} 23... Rxa4
{[%clk 0:02:08.1]} 24. Qc3+ {[%clk 0:01:29.4]} 24... f6 {[%clk 0:02:03]} 25. Rd4
{[%clk 0:01:08.6]} 25... Rfa8 {[%clk 0:01:32.4]} 26. Rxa4 {[%clk 0:01:03.2]}
26... Rxa4 {[%clk 0:01:31.7]} 27. e5 {[%clk 0:01:03]} 27... Nxf4 {[%clk
0:01:22.9]} 28. exf6+ {[%clk 0:00:52.7]} 28... exf6 {[%clk 0:01:20.9]} 29. Nxf4
{[%clk 0:00:47.6]} 29... Rxf4 {[%clk 0:01:21.8]} 30. h5 {[%clk 0:00:44.7]} 30...
Rg4 {[%clk 0:00:48.5]} 31. h6+ {[%clk 0:00:43.7]} 31... Kh7 {[%clk 0:00:45.7]}
32. Qe1 {[%clk 0:00:43.3]} 32... Qc7 {[%clk 0:00:40.2]} 33. Qe2 {[%clk
0:00:42.1]} 33... Rg5 {[%clk 0:00:34.8]} 34. Qf2 {[%clk 0:00:29.9]} 34... Rc5
{[%clk 0:00:24.8]} 35. Qxf6 {[%clk 0:00:26.4]} 35... Qb7 {[%clk 0:00:19.9]} 36.
Re1 {[%clk 0:00:22.8]} 36... Rc7 {[%clk 0:00:16.2]} 37. Qg5 {[%clk 0:00:13.5]}
37... d5 {[%clk 0:00:14.1]} 38. Re6 {[%clk 0:00:12.4]} 1-0

[Event "Early-Titled-Tuesday-Blitz-March-05-2024"]
[Site "Chess.com"]
[Date "2024.03.05"]
[Round "3"]
[White "DeArron_Fox"]
[Black "HATilay"]
[Result "1-0"]
[WhiteElo "2499"]
[BlackElo "2673"]
[TimeControl "180+1"]
[EndTime "8:31:40 PST"]
[Termination "DeArron_Fox won by resignation"]

1. d4 {[%clk 0:03:00.9]} 1... Nf6 {[%clk 0:02:59.3]} 2. c4 {[%clk 0:02:57]} 2...
e6 {[%clk 0:02:59.5]} 3. Nf3 {[%clk 0:02:56.8]} 3... d5 {[%clk 0:02:59.7]} 4.
Nc3 {[%clk 0:02:41]} 4... Nbd7 {[%clk 0:02:59.5]} 5. Bf4 {[%clk 0:02:33.4]} 5...
Bb4 {[%clk 0:02:59.2]} 6. e3 {[%clk 0:02:32.4]} 6... c5 {[%clk 0:02:59]} 7. Rc1
{[%clk 0:02:19.8]} 7... O-O {[%clk 0:02:57.7]} 8. a3 {[%clk 0:02:03.8]} 8...
Bxc3+ {[%clk 0:02:57.2]} 9. Rxc3 {[%clk 0:02:04.7]} 9... Ne4 {[%clk 0:02:57.5]}
10. Rc1 {[%clk 0:02:03.3]} 10... Qa5+ {[%clk 0:02:57.2]} 11. Nd2 {[%clk
0:02:03.2]} 11... cxd4 {[%clk 0:02:52]} 12. exd4 {[%clk 0:02:01.8]} 12... e5
{[%clk 0:01:44.5]} 13. dxe5 {[%clk 0:01:59.4]} 13... Re8 {[%clk 0:01:34]} 14.
Be2 {[%clk 0:01:52.1]} 14... Nxe5 {[%clk 0:01:27.5]} 15. O-O {[%clk 0:01:51.3]}
15... Ng6 {[%clk 0:01:26.9]} 16. Be3 {[%clk 0:01:25.9]} 16... d4 {[%clk
0:01:09.2]} 17. Nb3 {[%clk 0:01:22.2]} 17... Qc7 {[%clk 0:00:52.3]} 18. Nxd4
{[%clk 0:01:18.9]} 18... a6 {[%clk 0:00:47.4]} 19. Re1 {[%clk 0:00:58.9]} 19...
Bd7 {[%clk 0:00:47.3]} 20. c5 {[%clk 0:00:28.7]} 20... Rad8 {[%clk 0:00:45.9]}
21. Qc2 {[%clk 0:00:22.5]} 21... Rc8 {[%clk 0:00:23.8]} 22. c6 {[%clk
0:00:20.8]} 22... bxc6 {[%clk 0:00:16.6]} 23. Bxa6 {[%clk 0:00:18.8]} 23... Rb8
{[%clk 0:00:14.9]} 24. b4 {[%clk 0:00:11.6]} 24... Nf6 {[%clk 0:00:07.5]} 25.
Nxc6 {[%clk 0:00:09.3]} 25... Ra8 {[%clk 0:00:07.9]} 26. b5 {[%clk 0:00:06.8]}
26... Qd6 {[%clk 0:00:07.9]} 27. Red1 {[%clk 0:00:05.2]} 27... Qxa3 {[%clk
0:00:07.7]} 28. Bc5 {[%clk 0:00:05.8]} 28... Bf5 {[%clk 0:00:03.5]} 29. Qxf5
{[%clk 0:00:04.1]} 29... Qb2 {[%clk 0:00:04.2]} 30. Bd4 {[%clk 0:00:02.8]} 30...
Qa2 {[%clk 0:00:03.8]} 31. Bxf6 {[%clk 0:00:02.8]} 31... gxf6 {[%clk 0:00:04.6]}
32. Qxf6 {[%clk 0:00:03.7]} 32... Re6 {[%clk 0:00:05.1]} 33. Qf3 {[%clk
0:00:03.5]} 33... Rae8 {[%clk 0:00:05.7]} 34. h3 {[%clk 0:00:03.5]} 34... Qb2
{[%clk 0:00:05.8]} 35. Qg3 {[%clk 0:00:03.5]} 35... Kh8 {[%clk 0:00:06]} 36. Nd4
{[%clk 0:00:02.8]} 36... Re4 {[%clk 0:00:05.8]} 37. Nf3 {[%clk 0:00:02.5]} 37...
Kg8 {[%clk 0:00:06.5]} 38. Bb7 {[%clk 0:00:02.4]} 38... Qb4 {[%clk 0:00:07]} 39.
Bxe4 {[%clk 0:00:02.5]} 39... Qxe4 {[%clk 0:00:07.9]} 40. Re1 {[%clk 0:00:03]}
40... Qa8 {[%clk 0:00:07.8]} 41. Rxe8+ {[%clk 0:00:03]} 41... Qxe8 {[%clk
0:00:08.7]} 42. b6 {[%clk 0:00:03.9]} 42... Qc8 {[%clk 0:00:07.3]} 43. Rxc8+
{[%clk 0:00:03.4]} 1-0